[Event "Netanya Open 2019"]
[Site "Netanya"]
[Date "2019.06.26"]
[Round "4.23"]
[White "Lahav, Michal"]
[Black "Veinberg, Nimrod"]
[Result "1/2-1/2"]
[ECO "C60"]
[WhiteElo "2178"]
[BlackElo "2401"]
[Annotator "NA"]
[PlyCount "182"]
[EventDate "2019.06.23"]
[EventType "swiss"]
[EventCountry "ISR"]
[SourceTitle "playchess.com"]
[Source "ChessBase"]
[SourceQuality "1"]
[TimeControl "40/5400+30:1800+30"]

1. e4 {[%emt 0:00:00]} e5 {[%emt 0:00:00]} 2. Nf3 {[%emt 0:00:00]} Nc6 {[%emt 0:00:00]} 3. Bb5 {[%emt 0:00:00]} g6 {[%emt 0:00:34]} 4. O-O {[%emt 0:00:12]} Bg7 {[%emt 0:00:20]} 5. c3 {[%emt 0:00:17]} a6 {[%emt 0:02:17]} 6. Ba4 {[%emt 0:00:37]} b5 {[%emt 0:01:30]} 7. Bb3 {[%emt 0:00:04]} d6 {[%emt 0:04:17]} 8. h3 {[%emt 0:01:23]} Nge7 {[%emt 0:01:34]} 9. d4 {[%emt 0:00:40]} exd4 {[%emt 0:00:55]} 10. cxd4 {[%emt 0:00:10]} O-O {[%emt 0:03:00]} 11. Nc3 {[%emt 0:09:18]} Bb7 {[%emt 0:02:21]} 12. a3 {[%emt 0:00:25]} Rc8 {[%emt 0:08:52]} 13. Ba2 {[%emt 0:10:29]} Na5 {[%emt 0:03:37]} 14. Qd3 {[%emt 0:04:40]} h6 {[%emt 0:05:33]} 15. b4 {[%emt 0:02:00]} Nc4 {[%emt 0:03:09]} 16. Bxc4 {[%emt 0:03:03]} bxc4 {[%emt 0:01:39]} 17. Qxc4 {[%emt 0:00:07]} d5 {[%emt 0:01:12]} 18. exd5 {[%emt 0:01:12]} Nxd5 {[%emt 0:00:08]} 19. Nxd5 {[%emt 0:00:21]} Bxd5 {[%emt 0:00:09]} 20. Qd3 {[%emt 0:00:16]} a5 {[%emt 0:02:25]} 21. Bb2 {[%emt 0:01:48]} axb4 {[%emt 0:12:34]} 22. axb4 {[%emt 0:00:12]} Qd6 {[%emt 0:00:10]} 23. Nd2 {[%emt 0:09:24]} Qxb4 {[%emt 0:02:15]} 24. Bc3 {[%emt 0:10:10]} Qd6 {[%emt 0:10:30]} 25. Rfb1 {[%emt 0:04:27]} Rb8 {[%emt 0:03:31]} 26. Ne4 {[%emt 0:07:58]} Qc6 {[%emt 0:02:04]} 27. f3 {[%emt 0:00:42]} Bc4 {[%emt 0:02:52]} 28. Qe3 {[%emt 0:04:07]} Rbd8 {[%emt 0:11:36]} 29. Rc1 {[%emt 0:02:20]} Rfe8 {[%emt 0:01:21]} 30. d5 {[%emt 0:01:59]} Rxd5 {[%emt 0:01:35]} 31. Bxg7 {[%emt 0:00:10]} Kxg7 {[%emt 0:00:07]} 32. Qc3+ {[%emt 0:02:38]} f6 {[%emt 0:01:03]} 33. Kh2 {[%emt 0:01:35]} Rxe4 {[%emt 0:01:31]} 34. fxe4 {[%emt 0:00:03]} Rc5 {[%emt 0:00:02]} 35. Qd4 {[%emt 0:02:14]} g5 {[%emt 0:01:00]} 36. Rc3 {[%emt 0:02:30]} Qd6+ {[%emt 0:00:37]} 37. Qxd6 {[%emt 0:00:20]} cxd6 {[%emt 0:00:02]} 38. Kg3 {[%emt 0:02:08]} Kg6 {[%emt 0:01:27]} 39. Rd1 {[%emt 0:00:35]} Bb5 {[%emt 0:07:54]} 40. Rxc5 {[%emt 0:02:03]} dxc5 {[%emt 0:00:02]} 41. Kf3 {[%emt 0:30:13]} c4 {[%emt 0:31:32]} 42. Ke3 {[%emt 0:01:02]} Ba4 {[%emt 0:01:42]} 43. Rd6 {[%emt 0:01:50]} Kg7 {[%emt 0:00:00]} 44. Kd2 {[%emt 0:00:00]} Bb3 {[%emt 0:00:00]} 45. Kc3 {[%emt 0:00:00]} Ba2 {[%emt 0:00:00]} 46. Rb6 {[%emt 0:00:00]} Bb3 {[%emt 0:00:00]} 47. Rc6 {[%emt 0:00:00]} Ba2 {[%emt 0:00:00]} 48. Kb4 {[%emt 0:00:00]} Bb3 {[%emt 0:00:00]} 49. Kc3 {[%emt 0:00:00]} Ba2 {[%emt 0:00:00]} 50. Kd4 {[%emt 0:00:00]} Bb3 {[%emt 0:00:00]} 51. Ke3 {[%emt 0:00:00]} Kf7 {[%emt 0:00:00]} 52. Rc7+ {[%emt 0:00:00]} Kg6 {[%emt 0:00:00]} 53. Kf2 {[%emt 0:00:00]} h5 {[%emt 0:00:00]} 54. Rc6 {[%emt 0:00:00]} Kf7 {[%emt 0:00:00]} 55. g3 {[%emt 0:00:00]} Kg7 {[%emt 0:00:00]} 56. Ke3 {[%emt 0:00:00]} Kf7 {[%emt 0:00:00]} 57. h4 {[%emt 0:00:00]} Kg7 {[%emt 0:00:00]} 58. Kd4 {[%emt 0:00:00]} Ba2 {[%emt 0:00:00]} 59. Kc3 {[%emt 0:00:00]} Bb3 {[%emt 0:00:00]} 60. Kb4 {[%emt 0:00:00]} Ba2 {[%emt 0:00:00]} 61. Ka5 {[%emt 0:00:00]} Bb3 {[%emt 0:00:02]} 62. Kb6 {[%emt 0:00:00]} Kf7 {[%emt 0:00:42]} 63. Kc7 {[%emt 0:00:00]} Ke7 {[%emt 0:04:40]} 64. Rc5 {[%emt 0:00:00]} gxh4 {[%emt 0:00:23]} 65. gxh4 {[%emt 0:00:00]} Bd1 {[%emt 0:01:55]} 66. Rxc4 {[%emt 0:00:00]} Ke6 {[%emt 0:00:07]} 67. Rc5 {[%emt 0:00:00]} Bf3 {[%emt 0:00:22]} 68. Kb6 {[%emt 0:00:00]} Bg4 {[%emt 0:02:51]} 69. Kb5 {[%emt 0:00:00]} f5 {[%emt 0:00:05]} 70. e5 {[%emt 0:00:15]} Be2+ {[%emt 0:00:19]} 71. Kb4 {[%emt 0:00:08]} f4 {[%emt 0:00:08]} 72. Kc3 {[%emt 0:00:25]} Kf5 {[%emt 0:01:47]} 73. Kd2 {[%emt 0:00:04]} Bf3 {[%emt 0:00:57]} 74. Ke1 {[%emt 0:00:46]} Ke6 {[%emt 0:00:24]} 75. Kd2 {[%emt 0:01:09]} Bd5 {[%emt 0:00:09]} 76. Rc8 {[%emt 0:02:11]} Kxe5 {[%emt 0:00:11]} 77. Rh8 {[%emt 0:00:05]} Bf3 {[%emt 0:00:45]} 78. Rf8 {[%emt 0:00:23]} Ke4 {[%emt 0:00:11]} 79. Rh8 {[%emt 0:00:57]} Bg4 {[%emt 0:00:12]} 80. Ke1 {[%emt 0:00:44]} Kf3 {[%emt 0:00:03]} 81. Ra8 {[%emt 0:01:22]} Kg3 {[%emt 0:00:44]} 82. Ra3+ {[%emt 0:00:17]} f3 {[%emt 0:01:54]} 83. Kf1 {[%emt 0:00:02]} Be6 {[%emt 0:00:35]} 84. Kg1 {[%emt 0:00:53]} Bc4 {[%emt 0:00:20]} 85. Rc3 {[%emt 0:00:12]} Bd5 {[%emt 0:00:44]} 86. Rd3 {[%emt 0:00:13]} Be6 {[%emt 0:00:17]} 87. Re3 {[%emt 0:00:07]} Bf5 {[%emt 0:00:44]} 88. Ra3 {[%emt 0:00:03]} Bd7 {[%emt 0:00:48]} 89. Rd3 {[%emt 0:00:02]} Bb5 {[%emt 0:00:14]} 90. Rb3 {[%emt 0:00:02]} Be2 {[%emt 0:00:43]} 91. Ra3 {[%emt 0:00:02]} Kxh4 {[%emt 0:00:31]} 1/2-1/2

[Event "Netanya Open 2019"]
[Site "Netanya"]
[Date "2019.06.26"]
[Round "4.24"]
[White "Birnboim, Nathan"]
[Black "Nissim, Yonatan"]
[Result "1-0"]
[ECO "A37"]
[WhiteElo "2379"]
[BlackElo "2082"]
[Annotator "NA"]
[PlyCount "81"]
[EventDate "2019.06.23"]
[EventType "swiss"]
[EventCountry "ISR"]
[SourceTitle "playchess.com"]
[Source "ChessBase"]
[SourceQuality "1"]
[TimeControl "40/5400+30:1800+30"]

1. c4 {[%emt 0:00:00]} g6 {[%emt 0:00:00]} 2. Nc3 {[%emt 0:00:10]} c5 {[%emt 0:00:00]} 3. g3 {[%emt 0:00:50]} Nc6 {[%emt 0:00:00]} 4. Bg2 {[%emt 0:00:08]} Bg7 {[%emt 0:00:00]} 5. Nf3 {[%emt 0:01:12]} e6 {[%emt 0:00:01]} 6. d3 {[%emt 0:01:22]} Nge7 {[%emt 0:00:36]} 7. O-O {[%emt 0:00:41]} O-O {[%emt 0:00:06]} 8. Bd2 {[%emt 0:03:18]} d5 {[%emt 0:00:13]} 9. Rb1 {[%emt 0:16:44]} b6 {[%emt 0:00:21]} 10. Qc1 {[%emt 0:03:38]} Bb7 {[%emt 0:00:41]} 11. Bg5 {[%emt 0:04:21]} Qd7 {[%emt 0:02:38]} 12. Rd1 {[%emt 0:02:19]} Rac8 {[%emt 0:07:17]} 13. h4 {[%emt 0:02:40]} Nf5 {[%emt 0:20:40]} 14. cxd5 {[%emt 0:07:34]} exd5 {[%emt 0:00:15]} 15. Bh3 {[%emt 0:13:46]} Ncd4 {[%emt 0:03:45]} 16. Ne1 {[%emt 0:03:42]} Rfe8 {[%emt 0:15:10]} 17. Qd2 {[%emt 0:02:19]} Qc6 {[%emt 0:07:46]} 18. Bg2 {[%emt 0:01:29]} Qd7 {[%emt 0:03:26]} 19. Bh3 {[%emt 0:04:00]} Ne6 {[%emt 0:04:22]} 20. e4 {[%emt 0:02:02]} Nxg5 {[%emt 0:07:21]} 21. Qxg5 {[%emt 0:01:01]} dxe4 {[%emt 0:00:32]} 22. dxe4 {[%emt 0:01:00]} Qc6 {[%emt 0:00:11]} 23. Bg2 {[%emt 0:05:30]} Nd4 {[%emt 0:04:03]} 24. Nd5 {[%emt 0:04:44]} Qe6 {[%emt 0:01:39]} 25. Nd3 {[%emt 0:00:51]} Rcd8 {[%emt 0:04:57]} 26. Nc7 {[%emt 0:02:45]} Qxa2 {[%emt 0:00:41]} 27. Nxe8 {[%emt 0:00:12]} Rxe8 {[%emt 0:00:03]} 28. f3 {[%emt 0:02:11]} Qb3 {[%emt 0:03:31]} 29. Qd2 {[%emt 0:08:51]} Rd8 {[%emt 0:03:17]} 30. Qf2 {[%emt 0:02:21]} Ne6 {[%emt 0:05:25]} 31. Qe2 {[%emt 0:01:26]} Ba6 {[%emt 0:00:34]} 32. Bf1 {[%emt 0:00:01]} c4 {[%emt 0:02:22]} 33. Ne1 {[%emt 0:00:39]} Bd4+ {[%emt 0:01:44]} 34. Kh2 {[%emt 0:00:31]} c3 {[%emt 0:01:20]} 35. Qxa6 {[%emt 0:00:18]} Bg1+ {[%emt 0:01:32]} 36. Kxg1 {[%emt 0:00:02]} Rxd1 {[%emt 0:00:06]} 37. Rxd1 {[%emt 0:00:03]} Qxd1 {[%emt 0:00:07]} 38. Qc8+ {[%emt 0:00:07]} Kg7 {[%emt 0:01:19]} 39. Qxc3+ {[%emt 0:00:08]} Kh6 {[%emt 0:00:24]} 40. Nc2 {[%emt 0:00:49]} Nc5 {[%emt 0:00:37]} 41. Qe3+ {[%emt 0:30:42]} 1-0

[Event "Netanya Open 2019"]
[Site "Netanya"]
[Date "2019.06.26"]
[Round "4.25"]
[White "Shvayger, Yuliya"]
[Black "Pravdivetz, Vladimir"]
[Result "1/2-1/2"]
[ECO "C09"]
[WhiteElo "2361"]
[BlackElo "1927"]
[Annotator "NA"]
[PlyCount "123"]
[EventDate "2019.06.23"]
[EventType "swiss"]
[EventCountry "ISR"]
[SourceTitle "playchess.com"]
[Source "ChessBase"]
[SourceQuality "1"]
[TimeControl "40/5400+30:1800+30"]

1. e4 {[%emt 0:00:00]} e6 {[%emt 0:11:46]} 2. d4 {[%emt 0:00:00]} d5 {[%emt 0:00:05]} 3. Nd2 {[%emt 0:00:10]} c5 {[%emt 0:01:12]} 4. Ngf3 {[%emt 0:00:46]} Nc6 {[%emt 0:01:31]} 5. exd5 {[%emt 0:06:23]} exd5 {[%emt 0:00:17]} 6. Be2 {[%emt 0:03:15]} cxd4 {[%emt 0:04:48]} 7. O-O {[%emt 0:00:12]} Bd6 {[%emt 0:01:26]} 8. Nb3 {[%emt 0:00:53]} Nge7 {[%emt 0:01:04]} 9. Nbxd4 {[%emt 0:00:51]} O-O {[%emt 0:00:14]} 10. Bg5 {[%emt 0:00:51]} Qb6 {[%emt 0:04:37]} 11. Rb1 {[%emt 0:05:10]} a5 {[%emt 0:00:11]} 12. c3 {[%emt 0:00:37]} Re8 {[%emt 0:04:17]} 13. h3 {[%emt 0:03:26]} Bd7 {[%emt 0:01:16]} 14. Bd3 {[%emt 0:00:34]} Nxd4 15. Nxd4 Be5 {[%emt 0:07:26]} 16. Nf3 {[%emt 0:06:26]} Bd6 {[%emt 0:01:46]} 17. Be3 {[%emt 0:05:16]} Bc5 {[%emt 0:07:14]} 18. Re1 {[%emt 0:07:34]} Nf5 {[%emt 0:01:49]} 19. Bxc5 {[%emt 0:00:38]} Rxe1+ {[%emt 0:00:40]} 20. Qxe1 {[%emt 0:00:23]} Qxc5 {[%emt 0:00:11]} 21. Rd1 {[%emt 0:00:13]} Re8 {[%emt 0:07:20]} 22. Qd2 {[%emt 0:00:03]} Ne7 {[%emt 0:01:06]} 23. Bb1 {[%emt 0:03:28]} h6 {[%emt 0:03:03]} 24. Nd4 {[%emt 0:02:12]} Bc6 {[%emt 0:04:16]} 25. a3 {[%emt 0:05:32]} Qd6 {[%emt 0:01:16]} 26. Ba2 {[%emt 0:03:34]} Qf6 {[%emt 0:02:47]} 27. Re1 {[%emt 0:01:04]} Ra8 {[%emt 0:06:37]} 28. Bb1 {[%emt 0:00:50]} Ng6 {[%emt 0:02:50]} 29. Qd3 {[%emt 0:04:17]} Re8 {[%emt 0:02:53]} 30. Rd1 {[%emt 0:03:16]} Bd7 {[%emt 0:02:21]} 31. Ne2 {[%emt 0:05:32]} Bc6 {[%emt 0:01:32]} 32. Ng3 {[%emt 0:00:26]} Re5 {[%emt 0:02:07]} 33. b4 {[%emt 0:08:29]} axb4 {[%emt 0:00:27]} 34. axb4 {[%emt 0:00:02]} Ba4 {[%emt 0:02:22]} 35. Rf1 {[%emt 0:03:26]} Bb3 {[%emt 0:01:01]} 36. Qd4 {[%emt 0:01:25]} Bc4 {[%emt 0:01:02]} 37. Rd1 {[%emt 0:06:16]} Nf4 {[%emt 0:02:21]} 38. Bc2 {[%emt 0:01:18]} g6 {[%emt 0:03:32]} 39. Ra1 {[%emt 0:00:11]} Kh7 {[%emt 0:01:21]} 40. Kh2 {[%emt 0:01:37]} Ne6 {[%emt 0:03:22]} 41. Qd2 {[%emt 0:32:52]} h5 {[%emt 0:31:10]} 42. Re1 {[%emt 0:01:36]} h4 {[%emt 0:01:04]} 43. Nh1 {[%emt 0:01:16]} Rg5 {[%emt 0:02:20]} 44. g3 {[%emt 0:02:00]} hxg3+ {[%emt 0:00:00]} 45. fxg3 {[%emt 0:00:00]} Re5 {[%emt 0:00:00]} 46. Nf2 {[%emt 0:00:00]} Ng5 {[%emt 0:00:00]} 47. Bd1 {[%emt 0:00:00]} Ne4 {[%emt 0:00:00]} 48. Nxe4 {[%emt 0:00:00]} Rxe4 {[%emt 0:00:00]} 49. Bc2 {[%emt 0:00:00]} Rxe1 {[%emt 0:00:00]} 50. Qxe1 {[%emt 0:00:00]} Qf3 {[%emt 0:00:00]} 51. Bd1 {[%emt 0:00:00]} Qf6 {[%emt 0:00:00]} 52. Qe3 {[%emt 0:00:00]} Qf5 {[%emt 0:00:00]} 53. g4 {[%emt 0:00:00]} Qe6 {[%emt 0:00:00]} 54. Qf4 {[%emt 0:00:00]} Kg7 {[%emt 0:00:00]} 55. Bf3 {[%emt 0:00:00]} Qf6 {[%emt 0:00:00]} 56. Qe3 {[%emt 0:00:00]} g5 {[%emt 0:00:00]} 57. Kg2 {[%emt 0:00:00]} b5 {[%emt 0:00:00]} 58. Kf2 {[%emt 0:00:00]} Kg6 {[%emt 0:00:00]} 59. Kg2 {[%emt 0:00:00]} Qe6 {[%emt 0:00:00]} 60. Kf2 {[%emt 0:00:00]} Kf6 {[%emt 0:00:00]} 61. Qd4+ {[%emt 0:00:00]} Qe5 {[%emt 0:00:00]} 62. Kg2 {[%emt 0:00:00]} 1/2-1/2

[Event "Netanya Open 2019"]
[Site "Netanya"]
[Date "2019.06.26"]
[Round "4.26"]
[White "Katkov, Michelle"]
[Black "Iliaguev, Nisim"]
[Result "1/2-1/2"]
[ECO "B06"]
[WhiteElo "2112"]
[BlackElo "2357"]
[Annotator "NA"]
[PlyCount "179"]
[EventDate "2019.06.23"]
[EventType "swiss"]
[EventCountry "ISR"]
[SourceTitle "playchess.com"]
[Source "ChessBase"]
[SourceQuality "1"]
[TimeControl "40/5400+30:1800+30"]

1. e4 {[%emt 0:00:00]} c5 {[%emt 0:00:00]} 2. c3 {[%emt 0:00:00]} d5 {[%emt 0:00:00]} 3. exd5 {[%emt 0:00:04]} Qxd5 {[%emt 0:00:00]} 4. d4 {[%emt 0:00:05]} g6 {[%emt 0:00:05]} 5. Nf3 {[%emt 0:01:06]} Bg7 {[%emt 0:00:10]} 6. Be3 {[%emt 0:02:09]} cxd4 {[%emt 0:00:15]} 7. cxd4 {[%emt 0:01:46]} Nf6 {[%emt 0:01:03]} 8. Nc3 {[%emt 0:00:08]} Qd8 {[%emt 0:00:12]} 9. d5 {[%emt 0:03:42]} O-O {[%emt 0:01:08]} 10. Bc4 {[%emt 0:01:27]} b6 {[%emt 0:03:58]} 11. O-O {[%emt 0:01:46]} Bb7 {[%emt 0:01:47]} 12. a4 {[%emt 0:06:41]} Nbd7 {[%emt 0:00:47]} 13. Qe2 {[%emt 0:08:42]} Nc5 {[%emt 0:03:54]} 14. Rfd1 {[%emt 0:02:45]} Nce4 {[%emt 0:17:30]} 15. Nxe4 {[%emt 0:05:59]} Nxe4 {[%emt 0:00:19]} 16. a5 {[%emt 0:07:59]} bxa5 {[%emt 0:04:54]} 17. Ra2 {[%emt 0:04:44]} Nd6 {[%emt 0:04:57]} 18. Ba6 {[%emt 0:02:01]} Rb8 {[%emt 0:22:04]} 19. Bxa7 {[%emt 0:03:53]} Bxa6 {[%emt 0:01:20]} 20. Qxa6 {[%emt 0:00:08]} Rb5 {[%emt 0:00:12]} 21. Be3 {[%emt 0:08:34]} Qa8 {[%emt 0:02:11]} 22. Qxa8 {[%emt 0:03:27]} Rxa8 {[%emt 0:00:02]} 23. Bg5 {[%emt 0:15:43]} Kf8 {[%emt 0:03:12]} 24. Re1 {[%emt 0:04:24]} Ra7 {[%emt 0:01:47]} 25. Ne5 {[%emt 0:03:28]} Bxe5 {[%emt 0:00:40]} 26. Rxe5 {[%emt 0:00:08]} f6 {[%emt 0:00:15]} 27. Bh6+ {[%emt 0:00:05]} Kf7 {[%emt 0:00:07]} 28. Re1 {[%emt 0:02:48]} Rxd5 {[%emt 0:00:29]} 29. Be3 {[%emt 0:01:40]} Rb7 {[%emt 0:00:22]} 30. h3 {[%emt 0:05:09]} Nc4 {[%emt 0:00:46]} 31. Bc1 {[%emt 0:00:27]} Ne5 {[%emt 0:02:21]} 32. Ra3 {[%emt 0:01:44]} Rbb5 {[%emt 0:01:43]} 33. b3 {[%emt 0:02:53]} Rd3 {[%emt 0:01:40]} 34. Bb2 {[%emt 0:00:50]} Nc6 {[%emt 0:00:08]} 35. Re3 {[%emt 0:00:21]} Rd1+ {[%emt 0:00:30]} 36. Kh2 {[%emt 0:00:05]} Rd2 {[%emt 0:00:28]} 37. Rc3 {[%emt 0:01:05]} Rxb2 {[%emt 0:00:35]} 38. Rxc6 {[%emt 0:00:05]} R2xb3 {[%emt 0:00:35]} 39. Rxb3 {[%emt 0:00:43]} Rxb3 {[%emt 0:00:02]} 40. Ra6 {[%emt 0:00:17]} Ra3 {[%emt 0:00:08]} 41. Ra7 {[%emt 0:07:17]} h5 {[%emt 0:00:25]} 42. h4 {[%emt 0:01:48]} a4 {[%emt 0:00:37]} 43. g3 {[%emt 0:04:33]} Ra1 {[%emt 0:00:54]} 44. Kg2 {[%emt 0:00:12]} a3 {[%emt 0:00:05]} 45. Kf3 {[%emt 0:02:12]} a2 {[%emt 0:01:29]} 46. Kg2 {[%emt 0:00:51]} Ke6 {[%emt 0:01:00]} 47. Kf3 {[%emt 0:03:04]} Kf5 {[%emt 0:01:02]} 48. Kg2 {[%emt 0:01:07]} e5 {[%emt 0:00:08]} 49. Ra5 {[%emt 0:02:40]} Ke4 {[%emt 0:00:57]} 50. Ra3 {[%emt 0:01:25]} f5 {[%emt 0:00:55]} 51. Ra4+ {[%emt 0:01:08]} Kd3 {[%emt 0:00:18]} 52. Ra3+ {[%emt 0:00:17]} Ke2 {[%emt 0:04:16]} 53. Re3+ {[%emt 0:00:10]} Kd2 {[%emt 0:00:19]} 54. Ra3 {[%emt 0:00:05]} Kc2 {[%emt 0:07:12]} 55. Ra7 {[%emt 0:00:09]} Kd3 {[%emt 0:00:12]} 56. Ra5 {[%emt 0:01:09]} e4 {[%emt 0:03:29]} 57. Ra3+ {[%emt 0:02:16]} Kd2 {[%emt 0:00:53]} 58. Ra7 {[%emt 0:00:17]} Kd3 {[%emt 0:06:18]} 59. Ra3+ {[%emt 0:00:18]} Kc4 {[%emt 0:00:26]} 60. Ra7 {[%emt 0:00:23]} Kc3 {[%emt 0:01:48]} 61. Ra8 {[%emt 0:01:41]} Kd2 {[%emt 0:00:25]} 62. Ra3 {[%emt 0:00:22]} e3 {[%emt 0:02:58]} 63. fxe3 {[%emt 0:00:11]} Ke2 {[%emt 0:00:15]} 64. Ra7 {[%emt 0:00:47]} Kxe3 {[%emt 0:01:41]} 65. Ra3+ {[%emt 0:00:04]} Ke2 {[%emt 0:01:24]} 66. Ra7 {[%emt 0:00:44]} f4 {[%emt 0:01:45]} 67. gxf4 {[%emt 0:00:04]} Kd3 {[%emt 0:00:26]} 68. Ra3+ {[%emt 0:00:14]} Ke4 {[%emt 0:00:11]} 69. Ra5 {[%emt 0:01:32]} Kd4 {[%emt 0:00:54]} 70. Ra7 {[%emt 0:00:46]} Ke3 {[%emt 0:01:49]} 71. Ra3+ {[%emt 0:00:17]} Ke4 {[%emt 0:01:49]} 72. Ra5 {[%emt 0:01:10]} Kd4 {[%emt 0:05:14]} 73. Ra7 {[%emt 0:00:15]} Kd5 {[%emt 0:00:29]} 74. Ra5+ {[%emt 0:00:14]} Ke4 {[%emt 0:00:15]} 75. Ra4+ {[%emt 0:00:11]} Kf5 {[%emt 0:00:38]} 76. Ra6 {[%emt 0:00:13]} Kxf4 {[%emt 0:06:23]} 77. Ra4+ {[%emt 0:00:17]} Ke3 {[%emt 0:00:14]} 78. Ra3+ {[%emt 0:00:07]} Kd4 {[%emt 0:01:23]} 79. Ra8 {[%emt 0:00:07]} Ke3 {[%emt 0:00:38]} 80. Ra3+ {[%emt 0:00:09]} Kd4 {[%emt 0:01:03]} 81. Ra7 {[%emt 0:00:06]} Kc5 {[%emt 0:00:57]} 82. Ra5+ {[%emt 0:00:56]} Kd6 {[%emt 0:01:06]} 83. Ra6+ {[%emt 0:00:06]} Ke5 {[%emt 0:00:06]} 84. Ra5+ {[%emt 0:00:13]} Kd4 {[%emt 0:00:17]} 85. Ra7 {[%emt 0:00:16]} Ke4 {[%emt 0:00:00]} 86. Ra4+ {[%emt 0:00:10]} Kd3 {[%emt 0:00:00]} 87. Ra3+ {[%emt 0:00:04]} Ke2 {[%emt 0:00:00]} 88. Ra7 {[%emt 0:00:09]} Rd1 {[%emt 0:00:23]} 89. Rxa2+ {[%emt 0:00:10]} Rd2 {[%emt 0:16:28]} 90. Ra8 {[%emt 0:13:03]} 1/2-1/2

[Event "Netanya Open 2019"]
[Site "Netanya"]
[Date "2019.06.26"]
[Round "4.27"]
[White "Parkhov, Yair"]
[Black "Volkov, Yuri"]
[Result "1/2-1/2"]
[ECO "E17"]
[WhiteElo "2354"]
[BlackElo "1886"]
[Annotator "NA"]
[PlyCount "123"]
[EventDate "2019.06.23"]
[EventType "swiss"]
[EventCountry "ISR"]
[SourceTitle "playchess.com"]
[Source "ChessBase"]
[SourceQuality "1"]
[TimeControl "40/5400+30:1800+30"]

1. d4 {[%emt 0:00:00]} Nf6 {[%emt 0:00:00]} 2. c4 {[%emt 0:00:00]} e6 {[%emt 0:00:10]} 3. g3 {[%emt 0:00:00]} d5 {[%emt 0:01:17]} 4. Nf3 {[%emt 0:00:02]} Be7 {[%emt 0:02:14]} 5. Bg2 {[%emt 0:00:19]} O-O {[%emt 0:00:18]} 6. Qc2 {[%emt 0:00:04]} b6 {[%emt 0:06:09]} 7. O-O {[%emt 0:00:16]} Bb7 {[%emt 0:01:22]} 8. cxd5 {[%emt 0:05:06]} exd5 {[%emt 0:06:02]} 9. Bf4 {[%emt 0:00:11]} Bd6 {[%emt 0:02:58]} 10. Ne5 {[%emt 0:10:42]} Ne4 {[%emt 0:09:23]} 11. Nc3 {[%emt 0:02:41]} Nxc3 {[%emt 0:01:48]} 12. Qxc3 {[%emt 0:06:45]} Qe7 {[%emt 0:11:21]} 13. Rac1 {[%emt 0:04:01]} Bxe5 {[%emt 0:07:17]} 14. Bxe5 {[%emt 0:00:33]} c6 {[%emt 0:00:24]} 15. Rfe1 {[%emt 0:02:03]} Nd7 {[%emt 0:00:53]} 16. Bf4 {[%emt 0:00:18]} f5 {[%emt 0:02:40]} 17. a4 {[%emt 0:04:41]} a5 {[%emt 0:04:07]} 18. Qb3 {[%emt 0:02:13]} Rac8 {[%emt 0:00:38]} 19. e4 {[%emt 0:08:55]} fxe4 {[%emt 0:06:23]} 20. Rxe4 {[%emt 0:00:13]} Qb4 {[%emt 0:08:29]} 21. Qxb4 {[%emt 0:01:46]} axb4 {[%emt 0:00:05]} 22. Re7 {[%emt 0:00:11]} Rf7 {[%emt 0:03:54]} 23. Rxf7 {[%emt 0:01:01]} Kxf7 {[%emt 0:00:05]} 24. Bh3 {[%emt 0:00:07]} Rd8 {[%emt 0:01:18]} 25. Bc7 {[%emt 0:00:15]} Rc8 {[%emt 0:01:06]} 26. Bd6 {[%emt 0:00:12]} Rd8 {[%emt 0:00:43]} 27. Re1 {[%emt 0:02:23]} Re8 {[%emt 0:05:11]} 28. Bxb4 {[%emt 0:00:58]} Rxe1+ {[%emt 0:00:37]} 29. Bxe1 {[%emt 0:00:07]} Nf8 {[%emt 0:02:06]} 30. Bc3 {[%emt 0:02:22]} Ne6 {[%emt 0:00:23]} 31. f3 {[%emt 0:04:58]} g6 {[%emt 0:03:18]} 32. b4 {[%emt 0:01:48]} c5 {[%emt 0:04:21]} 33. Bxe6+ {[%emt 0:06:30]} Kxe6 {[%emt 0:00:05]} 34. dxc5 {[%emt 0:00:08]} bxc5 {[%emt 0:00:18]} 35. bxc5 {[%emt 0:00:08]} d4 {[%emt 0:00:50]} 36. Bxd4 {[%emt 0:00:06]} Bxf3 {[%emt 0:00:08]} 37. Kf2 {[%emt 0:01:14]} Bc6 {[%emt 0:01:14]} 38. a5 {[%emt 0:00:07]} Bb5 {[%emt 0:00:39]} 39. Be3 {[%emt 0:00:39]} Kd5 {[%emt 0:00:45]} 40. Kf3 {[%emt 0:00:49]} Bd3 {[%emt 0:02:53]} 41. Kg4 {[%emt 0:44:32]} Kc6 {[%emt 0:11:59]} 42. Kg5 {[%emt 0:00:00]} h5 {[%emt 0:00:43]} 43. a6 {[%emt 0:00:00]} Be4 {[%emt 0:08:50]} 44. a7 {[%emt 0:00:00]} Kb7 {[%emt 0:05:27]} 45. Kf4 {[%emt 0:00:00]} Bc6 {[%emt 0:00:39]} 46. Kg5 {[%emt 0:00:00]} Be4 {[%emt 0:00:22]} 47. c6+ {[%emt 0:00:00]} Bxc6 {[%emt 0:00:20]} 48. Kxg6 {[%emt 0:00:00]} Bf3 {[%emt 0:00:07]} 49. Kg5 {[%emt 0:00:00]} Be2 {[%emt 0:00:13]} 50. Bd4 {[%emt 0:00:00]} Bd1 {[%emt 0:00:10]} 51. Kf4 {[%emt 0:00:00]} Be2 {[%emt 0:00:17]} 52. Ke3 {[%emt 0:00:00]} Bg4 {[%emt 0:00:08]} 53. Bc5 {[%emt 0:00:00]} Bd1 {[%emt 0:00:19]} 54. h3 {[%emt 0:00:00]} Bb3 {[%emt 0:00:17]} 55. g4 {[%emt 0:00:00]} hxg4 {[%emt 0:00:04]} 56. h4 {[%emt 0:00:00]} g3 {[%emt 0:00:18]} 57. Kf4 {[%emt 0:00:00]} Bd1 {[%emt 0:00:17]} 58. Kxg3 {[%emt 0:00:00]} Bh5 {[%emt 0:00:07]} 59. Kf4 {[%emt 0:00:00]} Bd1 {[%emt 0:00:08]} 60. Kg5 {[%emt 0:00:00]} Be2 {[%emt 0:00:05]} 61. h5 {[%emt 0:00:00]} Bxh5 {[%emt 0:00:03]} 62. Kxh5 {[%emt 0:00:00]} 1/2-1/2